Cogmind - Beta 16.1 @@@ ROGUE MODE // 2026.02.23 @ 10:54:52 Player: Fleshy Vegetable Bird Result: Destroyed by Y5-6J4(R) with Subdweller Beam Cannon Performance ------------- Evolutions (0) 0 Regions Visited (3) 600 Robots Destroyed (13) 65 Value Destroyed (156) 156 Prototype IDs (0) 0 Alien Tech Used (0) 0 Bonus (51) 51 TOTAL SCORE: 872 Bonus ------- Follower Combat Kills 51 Cogmind --------- Core Integrity 0/250 Matter 226/300 Energy 16/125 System Corruption 0% Temperature Cool (9) Movement Rolling (110) Ox2 Location -10/Subcaves Parts ------- > --- POWER (1) -------- Light Ion Engine > --- PROPULSION (2) --- Wheel Wheel > --- UTILITY (2) ------ Large Storage Unit Large Storage Unit > --- WEAPON (2) ------- Particle Gun Light Assault Rifle > --- INVENTORY (15) --- Wheel High-capacity Storage Unit High-capacity Battery (250) Medium Matter Pod (14) Improved Terrain Scanner Mining Laser Peak State ------------ > --- POWER ------------ Light Ion Engine > --- PROPULSION ------- Wheel Wheel > --- UTILITY ---------- Large Storage Unit Improved Terrain Scanner > --- WEAPON ----------- Assault Rifle Assault Rifle > --- INVENTORY -------- Light Treads Wheel Wheel Wheel Large Storage Unit High-capacity Storage Unit Improved Terrain Scanner Mining Laser [Rating: 10] Favorites ----------- Power Light Ion Engine Engine Light Ion Engine Propulsion Wheel Treads Light Treads Wheel Wheel Utility Large Storage Unit Device Improved Terrain Scanner Storage Large Storage Unit Weapon Assault Rifle Energy Gun Medium Laser Ballistic Gun Assault Rifle Special Weapon Mining Laser Build | -11 -10 -10 -10 ------- Run | Yrd Mat Min Sub Slots Evolved . | . . . . Power . | . . . . Propulsion . | . . . . Utility . | . . . . Weapon . | . . . . Parts Attached 20 | 8 4 . 8 Power 3 | 1 1 . 1 Engine 3 | 1 1 . 1 Core . | . . . . Reactor . | . . . . Propulsion 5 | 2 . . 3 Treads 1 | . . . 1 Leg . | . . . . Wheel 4 | 2 . . 2 Hover . | . . . . Flight . | . . . . Utility 4 | 2 1 . 1 Device 1 | 1 . . . Storage 3 | 1 1 . 1 Processor . | . . . . Hackware . | . . . . Protection . | . . . . Artifact . | . . . . Weapon 8 | 3 2 . 3 Energy Gun 3 | 1 . . 2 Energy Cannon . | . . . . Ballistic Gun 4 | 2 1 . 1 Ballistic Cannon . | . . . . Launcher . | . . . . Special Weapon 1 | . 1 . . Impact Weapon . | . . . . Slashing Weapon . | . . . . Piercing Weapon . | . . . . Special Melee Weapon . | . . . . Unidentified Prototypes . | . . . . Parts Lost 9 | . 1 . 8 Power 2 | . 1 . 1 Propulsion 3 | . . . 3 Utility 1 | . . . 1 Weapon 3 | . . . 3 Highest Loss Streak 8 | . 1 . 8 To Critical Strikes 2 | . . . 2 Average Backups 10 | 1 10 13 12 Power . | . . 1 . Propulsion 3 | 1 4 4 3 Utility 3 | . 4 5 4 Weapon 2 | . 2 3 2 Tool/Special . | . . . . Unused Backups 8 | 2 1 . 5 Power 1 | 1 . . . Propulsion 2 | 1 . . 1 Utility 5 | . 1 . 4 Weapon . | . . . . Tool/Special . | . . . . Average Slot Usage (%) 99 | . 99 100 97 Engine 13 | . 13 14 14 Wheel 27 | . 28 28 24 Device 13 | . 14 14 12 Storage 14 | . 14 14 16 Ballistic Gun 26 | . 27 28 24 Peak Build Rating 10 | 9 10 10 10 Average Rating 9 | 5 9 10 9 On Entrance 7 | . 9 10 10 Avg Prop Armor Cover (%) . | . . . . Naked Turns . | . . . . Heaviest Build 47 | 13 28 28 47 Greatest Support 20 | 20 20 20 20 Greatest Overweight (x) 2 | 1 1 1 2 Average Overweight (x) . | . . 1 1 Largest Inventory Capacity 15 | 8 15 15 15 Average Capacity 13 | 7 14 15 15 Most Carried 14 | 7 14 13 13 Average Carried 10 | 1 10 13 12 Final Capacity 15 | 8 15 15 15 Final Carried 13 | 6 13 13 6 Class Distribution -------------------- 96% | Mutant 3% | Scavenger-Mutant Dominant Class ---------------- Mutant | -10/Materials Mutant | -10/Mines Mutant | -10/Subcaves Resources | -11 -10 -10 -10 ----------- Run | Yrd Mat Min Sub Matter Collected 591 | 319 172 . 100 Remotely . | . . . . Salvage Created 419 | 193 226 . . Parts 27 | 14 13 . . Haulers Intercepted 2 | . 2 . . Recyclers Shooed . | . . . . Parts Field Recycled . | . . . . Retrieved Matter . | . . . . Parts Self-Destructed 8 | . . . 8 Prevented . | . . . . Parts Restored . | . . . . Kills | -11 -10 -10 -10 ------- Run | Yrd Mat Min Sub Combat Hostiles Destroyed 5 | . 5 . . Guns 5 | . 5 . . Classes Destroyed 5 | 2 3 . . Tunneler 5 | 5 . . . Hauler 2 | . 2 . . Recycler 1 | 1 . . . Swarmer 3 | . 3 . . Grunt 2 | . 2 . . Best Kill Streak 5 | 5 5 . . Combat Bots Only 5 | . 5 . . Max Kills in Single Turn 1 | 1 1 . . Gunslinging . | . . . . Exploded . | . . . . Melee . | . . . . Uniques/NPCs Destroyed . | . . . . Combat | -11 -10 -10 -10 -------- Run | Yrd Mat Min Sub Hostile Shots Fired 70 | . 23 . 47 Missed 12 | . 3 . 9 Hits 58 | . 20 . 38 Projectile 58 | . 20 . 38 Critical Strikes 5 | . 2 . 3 Damage Taken 1078 | . 263 . 815 Core 251 | . 60 . 191 Absorbed by Shields . | . . . . Core Remaining (%) 100 | 100 . . . Volleys Fired 54 | 18 22 . 14 Largest 2 | 2 2 . 2 Hottest 115 | 40 100 . 115 Shots Fired 106 | 36 42 . 28 Gun 104 | 36 40 . 28 Cannon . | . . . . Launcher . | . . . . Special 2 | . 2 . . Kinetic 96 | 36 40 . 20 Thermal 10 | . 2 . 8 Explosive . | . . . . Electromagnetic . | . . . . Robot Hit Streak 15 | 12 7 . 15 Robot Miss Streak 4 | 4 2 . 2 Penetration Max . | . . . . Secondary Targets 3 | . 3 . . Max Gunslinging Chain 1 | . 1 . . Shots Hit Robots 76 | 25 29 . 22 Core Hits 19 | 7 11 . 1 Critical Kills . | . . . . Critical Parts Destroyed . | . . . . Critical Strikes . | . . . . Melee Attacks . | . . . . Impact . | . . . . Slashing . | . . . . Piercing . | . . . . Sneak Attacks . | . . . . Combat Hostiles . | . . . . Follow-up Attacks . | . . . . Damage Inflicted 816 | 355 369 . 92 Guns 816 | 355 369 . 92 Cannons . | . . . . Explosions . | . . . . Melee . | . . . . Ramming . | . . . . Kinetic 816 | 355 369 . 92 Thermal . | . . . . Explosive . | . . . . Electromagnetic . | . . . . Impact . | . . . . Slashing . | . . . . Piercing . | . . . . Highest Corruption . | . . . . Average Corruption . | . . . . Corruption Purged . | . . . . Corruption Blocked . | . . . . Overload Shots . | . . . . Overflow Damage . | . . . . Projectiles . | . . . . Explosions . | . . . . Melee . | . . . . Knockbacks . | . . . . Impact . | . . . . Kinetic . | . . . . Secondary . | . . . . Self-Inflicted Damage . | . . . . Shots . | . . . . Rammed . | . . . . Targets Rammed . | . . . . Kicked . | . . . . Crushed . | . . . . Highest Temperature 15 | . 15 . 8 Average Temperature 5 | . 6 . 4 Received Heat Transfer 405 | . 150 . 255 Siege Activations . | . . . . Martial Activations . | . . . . Shielding Activations . | . . . . Robots Disrupted . | . . . . Combat Hostiles . | . . . . Robots Corrupted . | . . . . Combat Hostiles . | . . . . Parts Fried . | . . . . Impact Corruptions . | . . . . Robots Melted . | . . . . Combat Hostiles . | . . . . Parts Melted . | . . . . Heat Transferred . | . . . . Parts Sabotaged . | . . . . Parts Stolen . | . . . . Parts Stripped . | . . . . Power Chain Reactions . | . . . . Alert | -11 -10 -10 -10 ------- Run | Yrd Mat Min Sub Maximum Alert Level . | . . . . Low Security (%) 100 | 100 100 100 . Level 1 . | . . . . Level 2 . | . . . . Level 3 . | . . . . Level 4 . | . . . . Level 5 . | . . . . High Security . | . . . . Max Security . | . . . . Peak Influence 160 | 15 160 17 . Initial 17 | . . 17 . Average 39 | 3 71 2 . Influence Increases 329 | 30 218 . 81 Destroy 0b10 Robot/C 160 | . 100 . 60 Destroy 0b10 Robot/NC 40 | 30 10 . . Destroy Leader 34 | . 24 . 10 Allied During Kill 11 | . . . 11 Successful Hack 22 | . 22 . . Destroy Structure 2 | . 2 . . Lose Combat Pursuer 60 | . 60 . . Influence Decreases 329 | 30 172 46 81 Entered New Map 29 | . . 29 . Time Decay 249 | 30 162 17 40 Lost Part 20 | . 10 . 10 Lost Ally 31 | . . . 31 Squads Dispatched 1 | . 1 . . Investigation 1 | . 1 . . Extermination . | . . . . Reinforcement . | . . . . Assault . | . . . . Garrison . | . . . . Intercept . | . . . . Searches Triggered . | . . . . Construction Impeded . | . . . . Haulers Reinforced . | . . . . Active Scanning Responses . | . . . . Cargo Convoy Interrupts . | . . . . Stealth | -11 -10 -10 -10 --------- Run | Yrd Mat Min Sub Distress Signals . | . . . . Communications Jammed . | . . . . Distress Signals . | . . . . Times Spotted 15 | . 9 . 6 Peak Tracking Total 5 | . 5 . 3 Tactical Retreats 1 | . 1 . . Traps | -11 -10 -10 -10 ------- Run | Yrd Mat Min Sub Traps Triggered 1 | . 1 . . Indirectly . | . . . . Trap Hack Attempts . | . . . . Triggered . | . . . . Disarmed . | . . . . Reprogrammed . | . . . . Reused . | . . . . Traps Extracted . | . . . . Installed . | . . . . Triggered . | . . . . Machines | -11 -10 -10 -10 ---------- Run | Yrd Mat Min Sub Machines Disabled . | . . . . Max in Single Turn . | . . . . Machines Repaired . | . . . . Machines Dismantled . | . . . . Machines Sabotaged . | . . . . Overloaded Fab Kills . | . . . . Hacking | -11 -10 -10 -10 --------- Run | Yrd Mat Min Sub Machines Accessed 5 | . 4 1 . Terminals 5 | . 4 1 . Fabricators . | . . . . Repair Stations . | . . . . Recycling Units . | . . . . Scanalyzers . | . . . . Garrison Access . | . . . . Total Hacks 22 | . 21 1 . Successful 9 | . 9 . . Failed 13 | . 12 1 . Catastrophic 2 | . 1 1 . Database Lockouts . | . . . . Manual 20 | . 19 1 . Terminals 22 | . 21 1 . Fabricators . | . . . . Repair Stations . | . . . . Recycling Units . | . . . . Scanalyzers . | . . . . Garrison Access . | . . . . Terminal Hacks 2 | . 2 . . Part Schematic 1 | . 1 . . Robot Analysis 1 | . 1 . . Fabricator Hacks . | . . . . Repair Station Hacks . | . . . . Recycling Unit Hacks . | . . . . Scanalyzer . | . . . . Garrison Access Hacks . | . . . . Unauthorized Hacks 7 | . 7 . . Terminals 7 | . 7 . . Track 2 | . 2 . . Botnet 3 | . 3 . . Operators 2 | . 2 . . Fabricators . | . . . . Repair Stations . | . . . . Recycling Units . | . . . . Scanalyzers . | . . . . Garrison Access . | . . . . Data Cores Recovered . | . . . . Used . | . . . . Hacking Detections 5 | . 4 1 . Full Trace Events . | . . . . Feedback Events . | . . . . Feedback Blocked . | . . . . Robot Schematics Acquired . | . . . . Robots Built . | . . . . Authchips . | . . . . Time . | . . . . Total Robot Build Rating . | . . . . Part Schematics Acquired 1 | . 1 . . Parts Built . | . . . . Authchips . | . . . . Time . | . . . . Total Part Build Rating . | . . . . Part Studies Acquired . | . . . . Parts Repaired . | . . . . Time . | . . . . Parts Recycled . | . . . . Recycled Matter . | . . . . Retrieved Matter . | . . . . Retrieved Components . | . . . . Parts Scanalyzed . | . . . . Part Schematics Acquired . | . . . . Parts Damaged . | . . . . Bothacking | -11 -10 -10 -10 ------------ Run | Yrd Mat Min Sub Used RIF Installer . | . . . . Robots Hacked . | . . . . Non-combat . | . . . . Combat . | . . . . Robot Hacks Applied . | . . . . Relay Couplers Released . | . . . . Fabnet Peak Effective % . | . . . . Robots Rewired . | . . . . Allies Hacked . | . . . . Hacks Repelled . | . . . . Allies | -11 -10 -10 -10 -------- Run | Yrd Mat Min Sub Total Allies 3 | . . 3 . Largest Group 3 | . . 3 3 Highest-Rated Group 40 | . . 40 40 Highest-Rated Ally 16 | . . 16 16 Total Orders . | . . . . Ally Attacks 44 | . . . 44 Total Damage 261 | . . . 261 Kills 4 | . . . 4 Allies Corrupted . | . . . . Allies Melted . | . . . . Intel | -11 -10 -10 -10 ------- Run | Yrd Mat Min Sub Active Infowar (turns) 681 | . 352 222 107 Terrain 681 | . 352 222 107 Robot Analysis Total 1 | . 1 . . Derelict Logs Recovered 2 | . . . 2 Drone Launches . | . . . . Drone Recoveries . | . . . . Exploration | -11 -10 -10 -10 ------------- Run | Yrd Mat Min Sub Turns Passed 921 | 145 425 222 129 Spaces Moved 724 | 83 358 211 72 Core 1 | 1 . . . Treads . | . . . . Legs . | . . . . Wheels 723 | 82 358 211 72 Hover . | . . . . Flight . | . . . . Fastest Speed 50 | 50 80 95 95 Average Speed 93 | 83 93 95 95 Slowest Speed 110 | 95 95 95 110 Overloaded Moves . | . . . . Propulsion Burnouts . | . . . . Robots Hopped . | . . . . Potential Cave-ins . | . . . . Cave-ins Triggered . | . . . . Exploration Rate (%) 27 | 3 60 40 6 Regions Visited 3 Branch Regions 2 Pre-discovered Areas 2 | . . . 2 Known Exits Taken . | . . . . Unknown Exits Taken 3 | 1 1 1 . Scrap Searched . | . . . . Spaces Dug 2 | . 2 . . Terrain Destroyed 2 | . 2 . . Melee . | . . . . Projectile 2 | . 2 . . AOE . | . . . . Terrain Rammed . | . . . . Walls Destroyed . | . . . . Machines Disabled . | . . . . Actions | -11 -10 -10 -10 --------- Run | Yrd Mat Min Sub Total 856 | 120 399 231 106 Wait 37 | . 5 20 12 Move 721 | 82 357 210 72 Hop . | . . . . Pick Up 17 | 9 8 . . Fast Attach 9 | 7 1 . 1 Attach 8 | 1 . . 7 Detach . | . . . . Swap 4 | . 3 1 . Drop 6 | 3 3 . . Fire 54 | 18 22 . 14 Melee . | . . . . Ram . | . . . . Kick . | . . . . Crush . | . . . . Escape Stasis . | . . . . Rewire . | . . . . Trap . | . . . . Miscellaneous . | . . . . Route ------- -11/Scrapyard -10/Materials (discovered 3 exits: [*Mat x2] / *Min) -10/Mines (discovered 2 exits: [*Mat] / [*Sub]) -10/Subcaves History --------- Turn | Location | Event 14 | -11/Scrapyard | Discovered new exit (range 15) 146 | -11/Scrapyard | Entered Materials 303 | -10/Materials | Build established: Mutant 353 | -10/Materials | Discovered new exit (range 14) 427 | -10/Materials | Discovered new exit (range 8) 524 | -10/Materials | Discovered new exit (range 16) 571 | -10/Materials | Entered Mines 603 | -10/Mines | Assisted by bots powering up and referring to "LRC-V3" 738 | -10/Mines | Discovered new exit (range 6) 776 | -10/Mines | Discovered new exit (range 9) 793 | -10/Mines | Entered Subcaves 793 | -10/Subcaves | Accompanied by 3 allies 794 | -10/Subcaves | Approached by a straggling Scientist 817 | -10/Subcaves | Learned location of Mines (-9) 859 | -10/Subcaves | Learned location of Zion (-7) 883 | -10/Subcaves | Shifting Twisted Machinery released Mak. Axe 895 | -10/Subcaves | Core integrity fell below 50% 915 | -10/Subcaves | Shifting Twisted Machinery released Sub. Power Source 919 | -10/Subcaves | Core integrity fell below 20% 922 | -10/Subcaves | Destroyed by Y5-6J4(R) with Subdweller Beam Cannon Last Messages --------------- 00859_ Acquired derelict log, extracted data. World map updated: -7/Zion. 00862_ Acquired 32 matter. 00873_ Subatomizers dissect the Heat Sink. Mak. Axe falls loose from the Twisted Machinery. 00886_ Wheel destroyed. 00892_ Trooper 1b destroyed. 00894_ Assault Rifle destroyed. L2-KOJ(c): "I think it's somewhere east of here" 00898_ Lgt. Ion Engine destroyed. 00900_ Imp. Terrain Scanner destroyed. 00910_ Critical hit (Destroy). 00910_ Lgt. Treads destroyed. 00914_ Critical hit (Destroy). 00914_ Assault Rifle destroyed. Sub. Power Source falls loose from the Twisted Machinery. 00915_ Acquired Particle Gun. 00918_ Wheel destroyed. 00918_ Med. Laser destroyed. Map ----- +----------------------------------------------------+ | ?????????????????????????????????????# ##?? ##??? | | ??????????????????????#????##?#?????## #?? #?#? | | ??????????????? ### ??????????????# #? ##?? | | ?????????????? ?????#???????## ### ##? | | ?????????????? ????????#?#### #? | | ?????????????? ?????###??# # | | ???????????????# ?????# #### ### #### | | ????????????????# ????## ## # # #### ##??? | | ?????????????????# ???## #####???##???? | | ??????????????????# ##?# # # #?#??????????? | | ?????????????????## #### ######????????????# | | ?????????????????## ### [ #????????????????? | | ???????????#????## ##! #???????????#????? | | ???????????# ## = #????????????????? | | ???????????# #??#????????#????? | | ???????????# ; # #????????????????? | | ??????????# ## ### ##????????????????? | | ??????????? ?#?### ####???#?????????????? | | ???????????" ??? ?#??## #???????????????????? | | ????????????????????????# #???????????????????? | | ????????????????????????# ##??????#????????????? | | ???????????????????????##c ##?????????#??????????? | | ????????????????? ?????## ##?#???#???????????????? | | ???????????????????????# #??????????????????????? | | ????????????????? ?????# ##??????????#??#???????? | | ??????????????????????###@##?????????????????????? | | ????????????????????? #;g% #?????#??????#????????? | | ??????????????????????## !##??????#??????????????? | | ???????????????????????#RR#??????????????????????? | | ?????????????????? ??#?## #?????????#???????????? | | ????????????#???????????* #????????????????????? | | ????????????????????????"" ???????????????????? | | ???????????????????????" ??????????????????? | | ???????????????????????/ # # ?????????????????? | | ?????????????????????? ?### #????????????????? | | ?????????????????????? ????? #??#????????????? | | ???????????????????? ????? #???????????????? | | ????????????????????? ?????? ##???????????????? | | ?????????????????????## #???????#????????????????? | | ??????????????????????##?????????????????????????? | | ?????????????????????????????????????????????????? | | ?????????????????????????????????????????????????? | | ?????????????????????????????????????????????????? | | ?????????????????????????????????????????????????? | | ?????????????????????????????????????????????????? | | ?????????????????????????????????????????????????? | | ?????????????????????????????????????????????????? | | ?????????????????????????????????????????????????? | | ?????????????????????????????????????????????????? | | ?????????????????????????????????????????????????? | +----------------------------------------------------+ Best States ------------- Heat Dissipation 25 Energy Generation 5 Energy Capacity 125 Matter Stores 300 Matter Capacity 300 Sight Range 16 Terrain Scan Range 16 Terrain Scan Density 10 Evasion (%) 44 Recoil Reduction 1 Item Schematics ----------------- Hcp. Storage Unit | -10/Materials | Hacked Robot Schematics ------------------ None Fabricated ------------ Nothing Repaired ---------- Nothing Studied --------- None Alien Tech Used ----------------- None Achievements -------------- None Challenges ------------ None Game ------ Seed NetworkPulseSlamshotty Manual? 0 Play Time 00:11:01 Cumulative 404.5 hours Start 2026.02.23 @ 10:45:50 End 2026.02.23 @ 10:54:52 Sessions 1 Manual Loads 0 Difficulty Rogue Special Mode None Game No. 448 Rogue 448 Adventurer 0 Explorer 0 Win Type - Total 6 Types 3/1/1/1/0/0/0/0/0/0 Lore% 76 Gallery% 68 Achievement% 41 Wizard Run 0 Options --------- Layout 1 ASCII 0 Keyboard 0 Movement Numpad Keybinds 0 Fullscreen 1 Font 32/SmallcapsGlow Map View 50x35 Zoom Use 0% Tactical HUD 1 Map Filters NONE Filters NONE Steam 1 RUN: 66dc6a5b-f7d9-41d4-b298-03c13bc0e1b6